[Event "*** Titled Tuesday Blitz"]
[Site "Chess.com"]
[Date "2020.04.21"]
[Round "8"]
[White "Bacyanide"]
[Black "emperor87"]
[Result "0-1"]
[WhiteElo "2429"]
[BlackElo "2650"]
[TimeControl "180+1"]
[EndTime "11:37:23 PDT"]
[Termination "emperor87 won by resignation"]

1. d4 {[%clk 0:03:00.9]} 1... d5 {[%clk 0:02:59.3]} 2. c4 {[%clk 0:03:00.2]}
2... e6 {[%clk 0:02:59.5]} 3. Nf3 {[%clk 0:03:00]} 3... Nf6 {[%clk 0:02:59.5]}
4. Nc3 {[%clk 0:03:00.2]} 4... c6 {[%clk 0:02:58.6]} 5. Bg5 {[%clk 0:02:48.4]}
5... Nbd7 {[%clk 0:02:56.6]} 6. e3 {[%clk 0:02:48]} 6... h6 {[%clk 0:02:55.6]}
7. Bh4 {[%clk 0:02:47.5]} 7... Be7 {[%clk 0:02:54.6]} 8. Bd3 {[%clk 0:02:41.4]}
8... dxc4 {[%clk 0:02:53.6]} 9. Bxc4 {[%clk 0:02:41.2]} 9... b5 {[%clk
0:02:53.7]} 10. Bd3 {[%clk 0:02:40]} 10... b4 {[%clk 0:02:53.9]} 11. Ne2 {[%clk
0:02:32.8]} 11... c5 {[%clk 0:02:51.4]} 12. O-O {[%clk 0:02:29.8]} 12... O-O
{[%clk 0:02:50.5]} 13. e4 {[%clk 0:02:22.8]} 13... Bb7 {[%clk 0:02:48.4]} 14. e5
{[%clk 0:02:19.3]} 14... Nd5 {[%clk 0:02:46.9]} 15. Bxe7 {[%clk 0:02:18.4]}
15... Nxe7 {[%clk 0:02:45.7]} 16. Ng3 {[%clk 0:02:07.5]} 16... cxd4 {[%clk
0:02:43.8]} 17. Ne4 {[%clk 0:02:05.9]} 17... Rb8 {[%clk 0:02:33.7]} 18. Qe2
{[%clk 0:02:04.8]} 18... Qa5 {[%clk 0:02:29.7]} 19. Nxd4 {[%clk 0:01:34.5]}
19... Nxe5 {[%clk 0:02:22.7]} 20. Bc2 {[%clk 0:01:31.8]} 20... N5g6 {[%clk
0:02:17.9]} 21. Nb3 {[%clk 0:01:24]} 21... Qe5 {[%clk 0:02:15.1]} 22. Nbc5
{[%clk 0:01:20]} 22... Bc6 {[%clk 0:02:12.8]} 23. Bd3 {[%clk 0:01:09.6]} 23...
Rbd8 {[%clk 0:02:09.4]} 24. Rad1 {[%clk 0:01:03.8]} 24... f5 {[%clk 0:02:03.7]}
25. Ng3 {[%clk 0:00:57.8]} 25... Qxc5 {[%clk 0:01:59.2]} 26. Qxe6+ {[%clk
0:00:57.6]} 26... Kh8 {[%clk 0:01:54.8]} 27. Nxf5 {[%clk 0:00:54.4]} 27... Nxf5
{[%clk 0:01:48.5]} 28. Bxf5 {[%clk 0:00:55.3]} 28... Nf4 {[%clk 0:01:41.4]} 29.
Qe3 {[%clk 0:00:22.1]} 29... Qxf5 {[%clk 0:01:39.4]} 30. Rxd8 {[%clk 0:00:20.7]}
30... Rxd8 {[%clk 0:01:37.5]} 31. Rc1 {[%clk 0:00:17.8]} 31... Bxg2 {[%clk
0:01:33.1]} 32. Qe7 {[%clk 0:00:17.3]} 32... Rg8 {[%clk 0:01:29.4]} 33. Qxa7
{[%clk 0:00:14.7]} 33... Qg4 {[%clk 0:01:26.6]} 0-1

[Event "*** Titled Tuesday Blitz"]
[Site "Chess.com"]
[Date "2020.04.21"]
[Round "8"]
[White "fabianvivasz"]
[Black "donotreadit"]
[Result "0-1"]
[WhiteElo "2396"]
[BlackElo "2685"]
[TimeControl "180+1"]
[EndTime "11:37:24 PDT"]
[Termination "donotreadit won on time"]

1. e4 {[%clk 0:02:58.4]} 1... c5 {[%clk 0:02:59.5]} 2. Nc3 {[%clk 0:02:55.5]}
2... Nc6 {[%clk 0:02:57.6]} 3. Bb5 {[%clk 0:02:55.2]} 3... Nd4 {[%clk
0:02:57.4]} 4. Nf3 {[%clk 0:02:54.8]} 4... a6 {[%clk 0:02:50.5]} 5. Bd3 {[%clk
0:02:49.7]} 5... e6 {[%clk 0:02:46.7]} 6. O-O {[%clk 0:02:48.3]} 6... Nc6 {[%clk
0:02:42.5]} 7. Re1 {[%clk 0:02:43.3]} 7... d6 {[%clk 0:02:41.6]} 8. Bf1 {[%clk
0:02:40.5]} 8... Nf6 {[%clk 0:02:41.4]} 9. d4 {[%clk 0:02:40.6]} 9... cxd4
{[%clk 0:02:40.6]} 10. Nxd4 {[%clk 0:02:41.5]} 10... Be7 {[%clk 0:02:34.3]} 11.
g3 {[%clk 0:02:06.3]} 11... O-O {[%clk 0:02:32.4]} 12. Bg2 {[%clk 0:02:04.4]}
12... Bd7 {[%clk 0:02:32.7]} 13. f4 {[%clk 0:02:00.3]} 13... Rc8 {[%clk
0:02:30]} 14. Be3 {[%clk 0:01:59]} 14... b5 {[%clk 0:02:24.6]} 15. Qf3 {[%clk
0:01:50.5]} 15... Qc7 {[%clk 0:02:19.4]} 16. Rad1 {[%clk 0:01:35.3]} 16... b4
{[%clk 0:02:10.2]} 17. Nce2 {[%clk 0:01:29.7]} 17... Nxd4 {[%clk 0:02:04.4]} 18.
Nxd4 {[%clk 0:01:30.6]} 18... e5 {[%clk 0:02:04.8]} 19. fxe5 {[%clk 0:01:05.2]}
19... dxe5 {[%clk 0:01:53.4]} 20. Nf5 {[%clk 0:01:03.5]} 20... Bxf5 {[%clk
0:01:54]} 21. Qxf5 {[%clk 0:00:54.1]} 21... Bc5 {[%clk 0:01:51.8]} 22. Rd2
{[%clk 0:00:37]} 22... Bxe3+ {[%clk 0:01:51.4]} 23. Rxe3 {[%clk 0:00:37.9]}
23... Qc5 {[%clk 0:01:52.1]} 24. Kf2 {[%clk 0:00:24.2]} 24... Rc6 {[%clk
0:01:47.4]} 25. Ke2 {[%clk 0:00:19.1]} 25... Rfc8 {[%clk 0:01:31.1]} 26. Red3
{[%clk 0:00:16.6]} 26... Qg1 {[%clk 0:01:30.8]} 27. Rd8+ {[%clk 0:00:14.4]}
27... Ne8 {[%clk 0:01:31]} 28. Rxc8 {[%clk 0:00:13.1]} 28... Rxc8 {[%clk
0:01:26.4]} 29. Qxc8 {[%clk 0:00:12.4]} 29... Qxg2+ {[%clk 0:01:27]} 30. Ke3
{[%clk 0:00:09.8]} 30... Qg1+ {[%clk 0:01:27.3]} 0-1

[Event "*** Titled Tuesday Blitz"]
[Site "Chess.com"]
[Date "2020.04.21"]
[Round "8"]
[White "archess2"]
[Black "varacalli"]
[Result "1-0"]
[WhiteElo "2226"]
[BlackElo "2331"]
[TimeControl "180+1"]
[EndTime "11:37:25 PDT"]
[Termination "archess2 won on time"]

1. d4 {[%clk 0:03:00.9]} 1... Nf6 {[%clk 0:02:58.9]} 2. c4 {[%clk 0:03:01]} 2...
c5 {[%clk 0:02:58.2]} 3. d5 {[%clk 0:03:00.6]} 3... b5 {[%clk 0:02:58.3]} 4.
cxb5 {[%clk 0:03:00.5]} 4... a6 {[%clk 0:02:58.6]} 5. b6 {[%clk 0:02:54.5]} 5...
Bb7 {[%clk 0:02:57.2]} 6. Nc3 {[%clk 0:02:53.6]} 6... e6 {[%clk 0:02:57.6]} 7.
e4 {[%clk 0:02:52.3]} 7... exd5 {[%clk 0:02:57.5]} 8. exd5 {[%clk 0:02:49.6]}
8... d6 {[%clk 0:02:57.7]} 9. a4 {[%clk 0:02:47.1]} 9... a5 {[%clk 0:02:56.6]}
10. Bb5+ {[%clk 0:02:41.8]} 10... Nbd7 {[%clk 0:02:56.3]} 11. Bg5 {[%clk
0:02:40.6]} 11... Be7 {[%clk 0:02:55.4]} 12. Nge2 {[%clk 0:02:36.9]} 12... O-O
{[%clk 0:02:54.1]} 13. Ng3 {[%clk 0:02:34]} 13... Nxb6 {[%clk 0:02:46.7]} 14.
Nf5 {[%clk 0:02:29.3]} 14... Nbxd5 {[%clk 0:02:22.2]} 15. Nxd5 {[%clk
0:02:26.1]} 15... Nxd5 {[%clk 0:02:17.2]} 16. Nxe7+ {[%clk 0:02:23.8]} 16...
Nxe7 {[%clk 0:02:16.8]} 17. O-O {[%clk 0:02:23.1]} 17... Qc7 {[%clk 0:02:09.2]}
18. Re1 {[%clk 0:02:14.5]} 18... Nc6 {[%clk 0:02:02.4]} 19. Bf4 {[%clk
0:02:10.3]} 19... Nd4 {[%clk 0:02:01.6]} 20. Rc1 {[%clk 0:02:06.8]} 20... Qb6
{[%clk 0:01:51.8]} 21. Qg4 {[%clk 0:02:04.9]} 21... Nxb5 {[%clk 0:01:23.7]} 22.
axb5 {[%clk 0:02:01.6]} 22... d5 {[%clk 0:01:12.3]} 23. Re7 {[%clk 0:01:53.5]}
23... Rae8 {[%clk 0:01:09.9]} 24. Rce1 {[%clk 0:01:45]} 24... Rxe7 {[%clk
0:01:09.2]} 25. Rxe7 {[%clk 0:01:45]} 25... Qxb5 {[%clk 0:01:02.7]} 26. Be5
{[%clk 0:01:37.9]} 26... g6 {[%clk 0:00:57]} 27. Qh4 {[%clk 0:01:30.3]} 27...
Ba6 {[%clk 0:00:33.6]} 28. h3 {[%clk 0:01:26.9]} 28... Qf1+ {[%clk 0:00:11.1]}
29. Kh2 {[%clk 0:01:24.7]} 1-0

[Event "*** Titled Tuesday Blitz"]
[Site "Chess.com"]
[Date "2020.04.21"]
[Round "8"]
[White "InfiniteAdaption"]
[Black "saisree"]
[Result "1-0"]
[WhiteElo "2469"]
[BlackElo "2328"]
[TimeControl "180+1"]
[EndTime "11:37:27 PDT"]
[Termination "InfiniteAdaption won by resignation"]

1. g3 {[%clk 0:03:00.9]} 1... d5 {[%clk 0:02:59.1]} 2. Bg2 {[%clk 0:02:59.4]}
2... Nf6 {[%clk 0:02:59.7]} 3. b3 {[%clk 0:02:57.3]} 3... c5 {[%clk 0:02:57]} 4.
Bb2 {[%clk 0:02:57.4]} 4... Nc6 {[%clk 0:02:57.1]} 5. e3 {[%clk 0:02:56]} 5...
Bg4 {[%clk 0:02:53.4]} 6. Ne2 {[%clk 0:02:54.4]} 6... e6 {[%clk 0:02:53.5]} 7.
h3 {[%clk 0:02:54.4]} 7... Bh5 {[%clk 0:02:52.7]} 8. O-O {[%clk 0:02:53.1]} 8...
Bd6 {[%clk 0:02:50.3]} 9. d3 {[%clk 0:02:52.7]} 9... O-O {[%clk 0:02:49.9]} 10.
Nd2 {[%clk 0:02:52.2]} 10... e5 {[%clk 0:02:35.3]} 11. e4 {[%clk 0:02:42.1]}
11... d4 {[%clk 0:02:31.6]} 12. f4 {[%clk 0:02:30.1]} 12... exf4 {[%clk
0:02:15.8]} 13. gxf4 {[%clk 0:02:28]} 13... Nd7 {[%clk 0:02:09.9]} 14. Qe1
{[%clk 0:02:18]} 14... f6 {[%clk 0:02:02.4]} 15. Nc4 {[%clk 0:02:06.7]} 15...
Qc7 {[%clk 0:01:59.4]} 16. Qh4 {[%clk 0:01:55.7]} 16... Bf7 {[%clk 0:01:58.5]}
17. Rf2 {[%clk 0:01:46.8]} 17... b5 {[%clk 0:01:56.1]} 18. Nxd6 {[%clk
0:01:44.1]} 18... Qxd6 {[%clk 0:01:56.1]} 19. Ng3 {[%clk 0:01:37.9]} 19... Kh8
{[%clk 0:01:29.7]} 20. Kh1 {[%clk 0:01:32.1]} 20... c4 {[%clk 0:01:27.2]} 21.
Rg1 {[%clk 0:01:15.8]} 21... g6 {[%clk 0:01:01.3]} 22. e5 {[%clk 0:00:57.2]}
22... fxe5 {[%clk 0:00:54.2]} 23. Ne4 {[%clk 0:00:56.6]} 23... Qe7 {[%clk
0:00:49.4]} 24. Ng5 {[%clk 0:00:56.5]} 24... Bg8 {[%clk 0:00:48]} 25. Bxc6
{[%clk 0:00:53.7]} 25... Rac8 {[%clk 0:00:44.6]} 26. Be4 {[%clk 0:00:50.7]}
26... Rf6 {[%clk 0:00:36.6]} 27. fxe5 {[%clk 0:00:46]} 27... Rxf2 {[%clk
0:00:30.2]} 28. Qxf2 {[%clk 0:00:45.7]} 28... Qxe5 {[%clk 0:00:30.8]} 29. Bxd4
{[%clk 0:00:45.2]} 1-0

[Event "*** Titled Tuesday Blitz"]
[Site "Chess.com"]
[Date "2020.04.21"]
[Round "8"]
[White "KingChess345"]
[Black "Alopekos"]
[Result "1-0"]
[WhiteElo "2126"]
[BlackElo "2359"]
[TimeControl "180+1"]
[EndTime "11:37:27 PDT"]
[Termination "KingChess345 won by resignation"]

1. d4 {[%clk 0:03:00.8]} 1... Nf6 {[%clk 0:02:56.5]} 2. Nf3 {[%clk 0:03:01]}
2... e6 {[%clk 0:02:56.4]} 3. g3 {[%clk 0:03:01.4]} 3... d5 {[%clk 0:02:54.6]}
4. Bg2 {[%clk 0:03:02.3]} 4... Be7 {[%clk 0:02:55.2]} 5. O-O {[%clk 0:03:03.2]}
5... O-O {[%clk 0:02:56.1]} 6. c4 {[%clk 0:03:03.2]} 6... dxc4 {[%clk 0:02:57]}
7. Qc2 {[%clk 0:03:03.7]} 7... b5 {[%clk 0:02:56]} 8. a4 {[%clk 0:03:02.5]} 8...
b4 {[%clk 0:02:56.2]} 9. Nbd2 {[%clk 0:02:43.2]} 9... Bb7 {[%clk 0:02:16.8]} 10.
Nxc4 {[%clk 0:02:42.6]} 10... Be4 {[%clk 0:02:14.8]} 11. Qb3 {[%clk 0:02:41.5]}
11... c5 {[%clk 0:01:11]} 12. Rd1 {[%clk 0:02:36.8]} 12... Nc6 {[%clk
0:00:39.2]} 13. dxc5 {[%clk 0:02:28.4]} 13... Na5 {[%clk 0:00:37.3]} 14. Nxa5
{[%clk 0:02:03]} 14... Qxa5 {[%clk 0:00:28.8]} 15. Be3 {[%clk 0:01:58.7]} 15...
Ng4 {[%clk 0:00:19.3]} 16. Rac1 {[%clk 0:01:45.6]} 16... Nxe3 {[%clk 0:00:16.5]}
17. Qxe3 {[%clk 0:01:46.5]} 17... Bc6 {[%clk 0:00:10.3]} 18. b3 {[%clk
0:01:40.8]} 18... Rac8 {[%clk 0:00:10.2]} 19. Ne5 {[%clk 0:01:14.4]} 19... Bxg2
{[%clk 0:00:09.8]} 20. Kxg2 {[%clk 0:01:15]} 20... Rxc5 {[%clk 0:00:09.8]} 21.
Nc6 {[%clk 0:00:58.1]} 21... Qc7 {[%clk 0:00:06.5]} 1-0

[Event "*** Titled Tuesday Blitz"]
[Site "Chess.com"]
[Date "2020.04.21"]
[Round "8"]
[White "ShahMatKanal"]
[Black "semchik73"]
[Result "0-1"]
[WhiteElo "2468"]
[BlackElo "2293"]
[TimeControl "180+1"]
[EndTime "11:37:34 PDT"]
[Termination "semchik73 won by resignation"]

1. Nf3 {[%clk 0:03:00.9]} 1... d5 {[%clk 0:02:57]} 2. c4 {[%clk 0:02:59.7]} 2...
c6 {[%clk 0:02:57.1]} 3. b3 {[%clk 0:02:54.1]} 3... Nf6 {[%clk 0:02:56.5]} 4.
Bb2 {[%clk 0:02:54]} 4... g6 {[%clk 0:02:56.9]} 5. Bxf6 {[%clk 0:02:52.8]} 5...
exf6 {[%clk 0:02:56.1]} 6. cxd5 {[%clk 0:02:52.8]} 6... cxd5 {[%clk 0:02:55.6]}
7. g3 {[%clk 0:02:50.3]} 7... Nc6 {[%clk 0:02:54.8]} 8. Bg2 {[%clk 0:02:50.2]}
8... Bg7 {[%clk 0:02:54]} 9. d4 {[%clk 0:02:44.4]} 9... f5 {[%clk 0:02:50.5]}
10. e3 {[%clk 0:02:42.9]} 10... O-O {[%clk 0:02:44.7]} 11. O-O {[%clk
0:02:42.5]} 11... Be6 {[%clk 0:02:37.9]} 12. Ne1 {[%clk 0:02:37.5]} 12... g5
{[%clk 0:02:33.6]} 13. Nc3 {[%clk 0:02:33.5]} 13... f4 {[%clk 0:02:31.8]} 14.
Nd3 {[%clk 0:01:50]} 14... fxe3 {[%clk 0:02:27.6]} 15. fxe3 {[%clk 0:01:49.5]}
15... Nxd4 {[%clk 0:02:27.5]} 16. exd4 {[%clk 0:01:48.2]} 16... Bxd4+ {[%clk
0:02:26.5]} 17. Kh1 {[%clk 0:01:48.5]} 17... Bxc3 {[%clk 0:02:26.7]} 18. Rc1
{[%clk 0:01:45]} 18... Bg7 {[%clk 0:02:26.3]} 19. Nc5 {[%clk 0:01:41]} 19... Rc8
{[%clk 0:02:19.5]} 20. Qh5 {[%clk 0:01:21.7]} 20... Qe7 {[%clk 0:02:14.5]} 21.
Nxe6 {[%clk 0:01:10.3]} 21... fxe6 {[%clk 0:02:14.1]} 22. Rxc8 {[%clk
0:01:07.9]} 22... Rxc8 {[%clk 0:02:13.1]} 23. Bh3 {[%clk 0:01:05.2]} 23... Rf8
{[%clk 0:02:05.1]} 24. Re1 {[%clk 0:01:02.3]} 24... e5 {[%clk 0:02:03.3]} 25.
Qg4 {[%clk 0:00:56.4]} 25... Re8 {[%clk 0:01:47.6]} 26. Qa4 {[%clk 0:00:49.5]}
26... e4 {[%clk 0:01:45.8]} 27. Qxa7 {[%clk 0:00:45.6]} 27... d4 {[%clk
0:01:45.8]} 28. Bf5 {[%clk 0:00:40.4]} 28... e3 {[%clk 0:01:33.4]} 29. Qa4
{[%clk 0:00:37.5]} 29... Rf8 {[%clk 0:01:29.7]} 30. Qc4+ {[%clk 0:00:36.5]}
30... Kh8 {[%clk 0:01:27.5]} 31. g4 {[%clk 0:00:35.9]} 31... Rxf5 {[%clk
0:01:20.1]} 32. gxf5 {[%clk 0:00:34.4]} 32... Qe4+ {[%clk 0:01:20.2]} 33. Kg1
{[%clk 0:00:34.2]} 33... Qg4+ {[%clk 0:01:20.2]} 34. Kh1 {[%clk 0:00:25.1]}
34... Qf3+ {[%clk 0:01:20]} 35. Kg1 {[%clk 0:00:25.7]} 35... Qf2+ {[%clk
0:01:20]} 36. Kh1 {[%clk 0:00:25.2]} 36... Qxe1+ {[%clk 0:01:19.8]} 37. Kg2
{[%clk 0:00:25.6]} 37... Qf2+ {[%clk 0:01:18]} 38. Kh1 {[%clk 0:00:24.7]} 38...
Qxf5 {[%clk 0:01:13.5]} 0-1

[Event "*** Titled Tuesday Blitz"]
[Site "Chess.com"]
[Date "2020.04.21"]
[Round "8"]
[White "Muguet7"]
[Black "Gyapiking"]
[Result "0-1"]
[WhiteElo "2487"]
[BlackElo "2376"]
[TimeControl "180+1"]
[EndTime "11:37:36 PDT"]
[Termination "Gyapiking won by resignation"]

1. Nf3 {[%clk 0:03:00.9]} 1... d6 {[%clk 0:02:57.5]} 2. c4 {[%clk 0:03:00.6]}
2... e5 {[%clk 0:02:56.6]} 3. g3 {[%clk 0:03:00.4]} 3... f5 {[%clk 0:02:55.9]}
4. d3 {[%clk 0:03:00.3]} 4... Nf6 {[%clk 0:02:55.8]} 5. Bg2 {[%clk 0:03:00.4]}
5... Be7 {[%clk 0:02:54.5]} 6. Nc3 {[%clk 0:03:00.4]} 6... O-O {[%clk
0:02:54.5]} 7. O-O {[%clk 0:03:00.7]} 7... Qe8 {[%clk 0:02:54.6]} 8. Ne1 {[%clk
0:03:00.4]} 8... Nc6 {[%clk 0:02:51.1]} 9. Nc2 {[%clk 0:03:00]} 9... Qh5 {[%clk
0:02:50.2]} 10. b4 {[%clk 0:02:56.7]} 10... f4 {[%clk 0:02:49.3]} 11. Nd5 {[%clk
0:02:52.4]} 11... Bh3 {[%clk 0:02:39.1]} 12. Nxf6+ {[%clk 0:02:49.1]} 12... Rxf6
{[%clk 0:02:37.4]} 13. Ne1 {[%clk 0:02:24.4]} 13... Rh6 {[%clk 0:02:33.1]} 14.
Nf3 {[%clk 0:02:19.6]} 14... Nd4 {[%clk 0:02:31.8]} 15. Re1 {[%clk 0:02:08.6]}
15... Bxg2 {[%clk 0:02:30.1]} 16. Kxg2 {[%clk 0:02:07.4]} 16... Qh3+ {[%clk
0:02:29.9]} 17. Kg1 {[%clk 0:02:06.9]} 17... Nxf3+ {[%clk 0:02:27.5]} 18. exf3
{[%clk 0:02:06.8]} 18... Qxh2+ {[%clk 0:02:27.3]} 19. Kf1 {[%clk 0:02:07.1]}
19... fxg3 {[%clk 0:02:27.5]} 20. fxg3 {[%clk 0:02:07.1]} 20... Qxg3 {[%clk
0:02:21.2]} 21. Bxh6 {[%clk 0:02:06.4]} 21... Rf8 {[%clk 0:02:12.9]} 22. Re3
{[%clk 0:02:00.4]} 22... Bh4 {[%clk 0:02:10.4]} 23. Qe2 {[%clk 0:01:58.6]} 23...
Rf6 {[%clk 0:01:49]} 24. Qg2 {[%clk 0:01:50.5]} 24... Rxh6 {[%clk 0:01:48.6]}
25. Qxg3 {[%clk 0:01:49.8]} 25... Bxg3 {[%clk 0:01:48.7]} 26. Kg2 {[%clk
0:01:45.1]} 26... Bf4 {[%clk 0:01:48.4]} 27. Re4 {[%clk 0:01:38.7]} 27... Rh2+
{[%clk 0:01:48]} 28. Kg1 {[%clk 0:01:38.5]} 28... Rd2 {[%clk 0:01:47.7]} 29. c5
{[%clk 0:01:32.9]} 29... Rxd3 {[%clk 0:01:47.3]} 30. cxd6 {[%clk 0:01:32.8]}
30... cxd6 {[%clk 0:01:47]} 31. Rc4 {[%clk 0:01:32.1]} 31... h5 {[%clk
0:01:45.9]} 32. Rc7 {[%clk 0:01:25.6]} 32... Rxf3 {[%clk 0:01:44]} 33. Rxb7
{[%clk 0:01:23.8]} 33... e4 {[%clk 0:01:43.2]} 34. Rf1 {[%clk 0:01:23.2]} 34...
g5 {[%clk 0:01:38.5]} 35. Kg2 {[%clk 0:01:20.9]} 35... Rxf1 {[%clk 0:01:33.9]}
36. Kxf1 {[%clk 0:01:20.8]} 36... h4 {[%clk 0:01:32.4]} 37. Rxa7 {[%clk
0:01:20.3]} 37... h3 {[%clk 0:01:31.3]} 38. b5 {[%clk 0:01:17.7]} 38... e3
{[%clk 0:01:27.6]} 39. b6 {[%clk 0:01:11.9]} 39... e2+ {[%clk 0:01:23.1]} 40.
Kxe2 {[%clk 0:01:06.6]} 40... h2 {[%clk 0:01:23.1]} 41. b7 {[%clk 0:01:01.7]}
41... d5 {[%clk 0:01:23.2]} 42. Ra8+ {[%clk 0:00:47.3]} 42... Kg7 {[%clk
0:01:22.3]} 43. Ra7 {[%clk 0:00:45.9]} 43... Bb8 {[%clk 0:01:20.1]} 44. Ra8
{[%clk 0:00:44.9]} 44... Bf4 {[%clk 0:01:17.4]} 45. Ra7 {[%clk 0:00:41.8]} 45...
Bb8 {[%clk 0:01:13.6]} 46. Ra8 {[%clk 0:00:41.6]} 46... h1=Q {[%clk 0:01:13.1]}
47. Rxb8 {[%clk 0:00:41.3]} 47... Qh2+ {[%clk 0:01:12.9]} 0-1

[Event "*** Titled Tuesday Blitz"]
[Site "Chess.com"]
[Date "2020.04.21"]
[Round "8"]
[White "Sethu0025"]
[Black "Vuk2000"]
[Result "1-0"]
[WhiteElo "2830"]
[BlackElo "2629"]
[TimeControl "180+1"]
[EndTime "11:37:37 PDT"]
[Termination "Sethu0025 won by resignation"]

1. e4 {[%clk 0:03:00.9]} 1... e6 {[%clk 0:02:59.8]} 2. d4 {[%clk 0:03:00.6]}
2... d5 {[%clk 0:03:00]} 3. Nc3 {[%clk 0:03:01.5]} 3... Bb4 {[%clk 0:02:59.9]}
4. e5 {[%clk 0:03:01.4]} 4... c5 {[%clk 0:03:00.3]} 5. a3 {[%clk 0:03:01.8]}
5... Bxc3+ {[%clk 0:03:00.4]} 6. bxc3 {[%clk 0:03:02.7]} 6... Ne7 {[%clk
0:03:01.1]} 7. Qg4 {[%clk 0:03:02.7]} 7... Qc7 {[%clk 0:03:01.4]} 8. Qxg7 {[%clk
0:03:02.2]} 8... Rg8 {[%clk 0:03:01.2]} 9. Qxh7 {[%clk 0:03:02.6]} 9... cxd4
{[%clk 0:03:01.7]} 10. Ne2 {[%clk 0:03:02.8]} 10... Nbc6 {[%clk 0:03:01.3]} 11.
f4 {[%clk 0:03:02.1]} 11... Bd7 {[%clk 0:03:01]} 12. Qd3 {[%clk 0:03:00.4]}
12... dxc3 {[%clk 0:03:00.3]} 13. Qxc3 {[%clk 0:03:00.9]} 13... Nf5 {[%clk
0:02:57.4]} 14. h3 {[%clk 0:02:57.7]} 14... d4 {[%clk 0:02:40.4]} 15. Qc4 {[%clk
0:02:40.9]} 15... Qb6 {[%clk 0:02:30.3]} 16. g4 {[%clk 0:02:33]} 16... Nh4
{[%clk 0:02:27.3]} 17. Qd3 {[%clk 0:02:28.7]} 17... Na5 {[%clk 0:02:14.9]} 18.
Rh2 {[%clk 0:01:58.5]} 18... Rc8 {[%clk 0:01:48]} 19. Rf2 {[%clk 0:01:43.5]}
19... Rc4 {[%clk 0:01:37.6]} 20. Bd2 {[%clk 0:01:26.9]} 20... Rh8 {[%clk
0:01:19.1]} 21. Ng3 {[%clk 0:01:11.2]} 21... Qb2 {[%clk 0:00:37.8]} 22. Rd1
{[%clk 0:01:10.6]} 22... Rxc2 {[%clk 0:00:28.2]} 23. Ne4 {[%clk 0:01:10.4]}
23... Nc4 {[%clk 0:00:19.4]} 24. Nf6+ {[%clk 0:01:02.6]} 24... Ke7 {[%clk
0:00:18.8]} 25. Bb4+ {[%clk 0:00:59]} 25... Qxb4+ {[%clk 0:00:12.8]} 26. axb4
{[%clk 0:00:59.9]} 26... Rxf2 {[%clk 0:00:11.4]} 27. Kxf2 {[%clk 0:00:59.5]}
27... Ne3 {[%clk 0:00:11.9]} 1-0

[Event "*** Titled Tuesday Blitz"]
[Site "Chess.com"]
[Date "2020.04.21"]
[Round "8"]
[White "ferdipy"]
[Black "ljuks68"]
[Result "0-1"]
[WhiteElo "2217"]
[BlackElo "2341"]
[TimeControl "180+1"]
[EndTime "11:37:37 PDT"]
[Termination "ljuks68 won by resignation"]

1. e4 {[%clk 0:03:00.9]} 1... e6 {[%clk 0:02:58.1]} 2. d4 {[%clk 0:02:43.1]}
2... d5 {[%clk 0:02:57.1]} 3. e5 {[%clk 0:02:43.5]} 3... c5 {[%clk 0:02:56.4]}
4. c3 {[%clk 0:02:38.1]} 4... Nc6 {[%clk 0:02:56.7]} 5. Nf3 {[%clk 0:02:27.7]}
5... Qb6 {[%clk 0:02:56]} 6. a3 {[%clk 0:02:26.6]} 6... c4 {[%clk 0:02:55.1]} 7.
Nbd2 {[%clk 0:02:22.3]} 7... Na5 {[%clk 0:02:54.2]} 8. Be2 {[%clk 0:02:12.4]}
8... Bd7 {[%clk 0:02:53.6]} 9. O-O {[%clk 0:02:12.8]} 9... Ne7 {[%clk
0:02:53.9]} 10. Ne1 {[%clk 0:02:11]} 10... Nf5 {[%clk 0:02:52]} 11. g4 {[%clk
0:01:55.9]} 11... Nh4 {[%clk 0:02:51.1]} 12. f4 {[%clk 0:01:55.6]} 12... Be7
{[%clk 0:02:51]} 13. Nef3 {[%clk 0:01:54.1]} 13... Nxf3+ {[%clk 0:02:49.6]} 14.
Bxf3 {[%clk 0:01:51]} 14... O-O-O {[%clk 0:02:45.7]} 15. Qe1 {[%clk 0:01:42]}
15... f6 {[%clk 0:02:27.9]} 16. Kh1 {[%clk 0:01:38.4]} 16... Rhf8 {[%clk
0:02:16.8]} 17. b4 {[%clk 0:01:35.2]} 17... cxb3 {[%clk 0:02:15.1]} 18. Rb1
{[%clk 0:01:35.7]} 18... fxe5 {[%clk 0:02:05.8]} 19. fxe5 {[%clk 0:01:31.2]}
19... Bb5 {[%clk 0:01:57.7]} 20. Rf2 {[%clk 0:01:26.8]} 20... Bd3 {[%clk
0:01:53.3]} 21. Bb2 {[%clk 0:01:25.1]} 21... Bxb1 {[%clk 0:01:49.8]} 22. Qxb1
{[%clk 0:01:26]} 22... Nc4 {[%clk 0:01:49.3]} 23. Nxc4 {[%clk 0:01:24.9]} 23...
dxc4 {[%clk 0:01:48.5]} 24. Qxh7 {[%clk 0:01:25.4]} 24... Rxf3 {[%clk
0:01:33.1]} 25. Rxf3 {[%clk 0:01:23.2]} 25... Qc6 {[%clk 0:01:33.5]} 26. Kg2
{[%clk 0:01:22.7]} 26... Rf8 {[%clk 0:01:32.8]} 27. Qh3 {[%clk 0:01:23.1]} 27...
Qe4 {[%clk 0:01:32.5]} 28. Kf2 {[%clk 0:01:09.7]} 28... Qc2+ {[%clk 0:01:31.4]}
29. Kg3 {[%clk 0:01:09.3]} 29... Qxb2 {[%clk 0:01:23.6]} 30. Rxf8+ {[%clk
0:01:08.4]} 30... Bxf8 {[%clk 0:01:23.3]} 31. Qh8 {[%clk 0:01:06.9]} 31... Qxa3
{[%clk 0:01:21.3]} 32. Qg8 {[%clk 0:01:02.9]} 32... Qe7 {[%clk 0:01:20.4]} 33.
Qh7 {[%clk 0:01:01.6]} 33... Kb8 {[%clk 0:01:04.6]} 34. h4 {[%clk 0:01:01.2]}
34... a6 {[%clk 0:01:00.3]} 35. h5 {[%clk 0:00:57.6]} 35... b2 {[%clk
0:00:59.2]} 36. Qc2 {[%clk 0:00:57.6]} 36... Qa3 {[%clk 0:00:58.8]} 37. g5
{[%clk 0:00:54.3]} 37... Qb3 {[%clk 0:00:58.3]} 38. Qb1 {[%clk 0:00:53.2]} 38...
Qxc3+ {[%clk 0:00:58.2]} 39. Kg4 {[%clk 0:00:50.4]} 39... Qxd4+ {[%clk
0:00:56.5]} 40. Kf3 {[%clk 0:00:51.3]} 40... Qd3+ {[%clk 0:00:56.6]} 41. Qxd3
{[%clk 0:00:50.2]} 41... cxd3 {[%clk 0:00:56.7]} 42. h6 {[%clk 0:00:51.1]} 42...
gxh6 {[%clk 0:00:55.8]} 43. gxh6 {[%clk 0:00:52]} 43... Bxh6 {[%clk 0:00:56.1]}
0-1